[Event "9th A. Margaryan Memorial 2019"]
[Site "Yerevan"]
[Date "2019.01.09"]
[Round "2"]
[White "Sturua, Zurab"]
[Black "Sargsyan, Tigran R."]
[Result "1/2-1/2"]
[ECO "A11"]
[WhiteElo "2533"]
[BlackElo "2332"]
[Annotator "ChessBase"]
[PlyCount "80"]
[EventDate "2019.01.08"]
[EventType "tourn"]
[EventCountry "ARM"]
[SourceTitle "playchess.com"]
[Source "ChessBase"]
[SourceQuality "1"]
[TimeControl "40/5400+30:1800+30"]

1. c4 {[%emt 0:00:00]} c6 {[%emt 0:00:15]} 2. Nf3 {[%emt 0:00:15]} d5 {[%emt 0:00:07]} 3. e3 {[%emt 0:00:36]} Bf5 {[%emt 0:02:15]} 4. cxd5 {[%emt 0:02:40]} cxd5 {[%emt 0:00:35]} 5. Qb3 {[%emt 0:00:16]} Qc8 {[%emt 0:01:40]} 6. Nc3 {[%emt 0:00:19]} e6 {[%emt 0:00:34]} 7. d4 {[%emt 0:17:52]} Nc6 {[%emt 0:01:16]} 8. Bd2 {[%emt 0:00:07]} Bd6 {[%emt 0:09:42]} 9. Rc1 {[%emt 0:01:21]} Nge7 {[%emt 0:06:50]} 10. Nh4 {[%emt 0:14:07]} Bg4 {[%emt 0:06:09]} 11. h3 {[%emt 0:10:09]} Bh5 {[%emt 0:00:31]} 12. g4 {[%emt 0:00:09]} Bg6 {[%emt 0:00:40]} 13. Be2 {[%emt 0:00:07]} O-O {[%emt 0:19:26]} 14. Nxg6 {[%emt 0:11:29]} Nxg6 {[%emt 0:01:25]} 15. Na4 {[%emt 0:01:07]} Qd7 {[%emt 0:23:05]} 16. Nc5 {[%emt 0:01:03]} Bxc5 {[%emt 0:00:20]} 17. Rxc5 {[%emt 0:00:15]} Rac8 {[%emt 0:01:24]} 18. h4 {[%emt 0:17:42]} Nge7 {[%emt 0:04:28]} 19. f4 {[%emt 0:03:17]} f5 {[%emt 0:02:03]} 20. g5 {[%emt 0:02:59]} Rc7 {[%emt 0:00:32]} 21. Kf2 {[%emt 0:00:57]} Nc8 {[%emt 0:00:20]} 22. Rhc1 {[%emt 0:04:20]} Nd6 {[%emt 0:00:13]} 23. Kg2 {[%emt 0:00:18]} Ne4 {[%emt 0:02:41]} 24. R5c2 {[%emt 0:01:03]} Rfc8 {[%emt 0:03:03]} 25. Be1 {[%emt 0:01:01]} Nd8 {[%emt 0:05:17]} 26. a4 {[%emt 0:04:36]} Nf7 {[%emt 0:03:44]} 27. Ba5 {[%emt 0:01:44]} Rxc2 {[%emt 0:00:47]} 28. Rxc2 {[%emt 0:00:02]} Nfd6 {[%emt 0:00:28]} 29. Bb4 {[%emt 0:01:20]} Kf7 {[%emt 0:01:41]} 30. Rxc8 {[%emt 0:01:45]} Qxc8 {[%emt 0:00:24]} 31. Qd1 {[%emt 0:00:25]} Nc4 {[%emt 0:00:46]} 32. Qc1 {[%emt 0:00:15]} Ncd6 {[%emt 0:02:27]} 33. Qxc8 {[%emt 0:00:30]} Nxc8 {[%emt 0:00:01]} 34. b3 {[%emt 0:00:55]} a6 {[%emt 0:00:25]} 35. Bh5+ {[%emt 0:00:49]} g6 {[%emt 0:00:33]} 36. Bd1 {[%emt 0:00:11]} Na7 {[%emt 0:00:43]} 37. h5 {[%emt 0:00:21]} Nc6 {[%emt 0:00:05]} 38. Be1 {[%emt 0:00:03]} a5 {[%emt 0:01:24]} 39. h6 {[%emt 0:01:12]} b6 {[%emt 0:00:08]} 40. Kf3 {[%emt 0:00:00]} Ke7 {[%emt 0:00:00] Kxe4} 1/2-1/2

[Event "9th A. Margaryan Memorial 2019"]
[Site "Yerevan"]
[Date "2019.01.10"]
[Round "3"]
[White "Sargsyan, Tigran R."]
[Black "Babujian, Levon"]
[Result "1-0"]
[ECO "E10"]
[WhiteElo "2332"]
[BlackElo "2488"]
[Annotator "ChessBase"]
[PlyCount "89"]
[EventDate "2019.01.08"]
[EventType "tourn"]
[EventCountry "ARM"]
[SourceTitle "playchess.com"]
[Source "ChessBase"]
[SourceQuality "1"]
[TimeControl "40/5400+30:1800+30"]

1. d4 {[%emt 0:00:00]} Nf6 {[%emt 0:00:00]} 2. c4 {[%emt 0:00:09]} e6 {[%emt 0:00:00]} 3. Nf3 {[%emt 0:00:51]} c5 {[%emt 0:00:31]} 4. g3 {[%emt 0:02:36]} cxd4 {[%emt 0:00:15]} 5. Nxd4 {[%emt 0:00:08]} Bb4+ {[%emt 0:00:03]} 6. Nc3 {[%emt 0:08:28]} Ne4 {[%emt 0:00:54]} 7. Qd3 {[%emt 0:01:33]} Bxc3+ {[%emt 0:01:58]} 8. bxc3 {[%emt 0:00:17]} Nc5 {[%emt 0:00:02]} 9. Qe3 {[%emt 0:03:58]} O-O {[%emt 0:05:29]} 10. Ba3 {[%emt 0:04:04]} d6 {[%emt 0:00:38]} 11. Nb5 {[%emt 0:12:34]} Qa5 {[%emt 0:15:55]} 12. Bb4 {[%emt 0:02:36]} Qa4 {[%emt 0:00:49]} 13. Nxd6 {[%emt 0:14:47]} Nca6 {[%emt 0:00:48]} 14. Qd2 {[%emt 0:13:03]} Nc6 {[%emt 0:04:00]} 15. a3 {[%emt 0:03:41]} Naxb4 {[%emt 0:22:43]} 16. cxb4 {[%emt 0:00:21]} a5 {[%emt 0:00:24]} 17. b5 {[%emt 0:05:37]} Nb4 {[%emt 0:00:09]} 18. Qd1 {[%emt 0:01:16]} Nc2+ {[%emt 0:09:03]} 19. Kd2 {[%emt 0:00:19]} Rd8 {[%emt 0:00:11]} 20. Qxc2 {[%emt 0:00:24]} Rxd6+ {[%emt 0:00:07]} 21. Kc1 {[%emt 0:00:17]} Qxc2+ {[%emt 0:00:06]} 22. Kxc2 {[%emt 0:00:06]} e5 {[%emt 0:00:25]} 23. Bg2 {[%emt 0:03:06]} Rd4 {[%emt 0:02:14]} 24. Bd5 {[%emt 0:09:41]} Be6 {[%emt 0:00:48]} 25. Bxe6 {[%emt 0:02:22]} fxe6 {[%emt 0:00:06]} 26. Kb3 {[%emt 0:00:34]} Rd2 {[%emt 0:03:21]} 27. Rhe1 {[%emt 0:02:09]} Rad8 {[%emt 0:00:06]} 28. Rac1 {[%emt 0:00:55]} b6 {[%emt 0:00:49]} 29. Rc2 {[%emt 0:01:42]} R2d4 {[%emt 0:00:51]} 30. Rec1 {[%emt 0:00:48]} Kf7 {[%emt 0:02:02]} 31. e3 {[%emt 0:01:19]} Rd3+ {[%emt 0:00:27]} 32. Rc3 {[%emt 0:00:15]} Ke7 {[%emt 0:02:26]} 33. Ka4 {[%emt 0:03:29]} Rxc3 {[%emt 0:09:07]} 34. Rxc3 {[%emt 0:00:01]} Rd2 {[%emt 0:00:04]} 35. c5 {[%emt 0:00:28]} bxc5 {[%emt 0:00:05]} 36. Kxa5 {[%emt 0:00:45]} Ra2 {[%emt 0:02:31]} 37. Kb6 {[%emt 0:00:26]} Kd7 {[%emt 0:00:27]} 38. Ka7 {[%emt 0:00:52]} Rxf2 {[%emt 0:00:06]} 39. b6 {[%emt 0:01:16]} Kc6 {[%emt 0:00:04]} 40. b7 {[%emt 0:00:00]} Rf7 {[%emt 0:00:00]} 41. Rb3 {[%emt 0:00:53]} c4 {[%emt 0:00:19]} 42. Rb1 {[%emt 0:00:11]} c3 {[%emt 0:00:26]} 43. Ka8 {[%emt 0:00:32]} Rxb7 {[%emt 0:02:00]} 44. Rxb7 {[%emt 0:00:06]} c2 {[%emt 0:00:01]} 45. Kb8 {[%emt 0:00:06]} 1-0

[Event "9th A. Margaryan Memorial 2019"]
[Site "Yerevan"]
[Date "2019.01.12"]
[Round "5"]
[White "Sychev, Klementy"]
[Black "Davtyan, Artur"]
[Result "1/2-1/2"]
[ECO "A06"]
[WhiteElo "2537"]
[BlackElo "2396"]
[Annotator "ChessBase"]
[PlyCount "172"]
[EventDate "2019.01.08"]
[EventType "tourn"]
[EventCountry "ARM"]
[SourceTitle "playchess.com"]
[Source "ChessBase"]
[SourceQuality "1"]
[TimeControl "40/5400+30:1800+30"]

1. Nf3 {[%emt 0:00:00]} Nf6 {[%emt 0:00:53]} 2. c4 {[%emt 0:00:00]} e6 {[%emt 0:00:05]} 3. b3 {[%emt 0:00:01]} d5 {[%emt 0:00:35]} 4. Bb2 {[%emt 0:00:04]} c5 {[%emt 0:00:02]} 5. e3 {[%emt 0:01:16]} Nc6 {[%emt 0:00:31]} 6. cxd5 {[%emt 0:03:13]} exd5 {[%emt 0:00:15]} 7. Bb5 {[%emt 0:00:12]} Bd6 {[%emt 0:02:19]} 8. O-O {[%emt 0:00:15]} O-O {[%emt 0:00:51]} 9. d4 {[%emt 0:00:03]} cxd4 {[%emt 0:11:52]} 10. Nxd4 {[%emt 0:00:07]} Qe7 {[%emt 0:00:12]} 11. Nf3 {[%emt 0:19:09]} Bg4 {[%emt 0:00:56]} 12. Nbd2 {[%emt 0:09:23]} Ne4 {[%emt 0:13:50]} 13. Bxc6 {[%emt 0:12:10]} bxc6 {[%emt 0:06:58]} 14. Nxe4 {[%emt 0:00:50]} Qxe4 {[%emt 0:02:20]} 15. Qd4 {[%emt 0:03:08]} Qxd4 {[%emt 0:00:32]} 16. Nxd4 {[%emt 0:00:50]} Bd7 {[%emt 0:00:54]} 17. Rac1 {[%emt 0:02:18]} Rfc8 {[%emt 0:09:12]} 18. Ne2 {[%emt 0:02:44]} c5 {[%emt 0:13:23]} 19. Rfd1 {[%emt 0:02:45]} Be6 {[%emt 0:00:24]} 20. Nc3 {[%emt 0:19:47]} Be5 {[%emt 0:01:18]} 21. Na4 {[%emt 0:01:28]} Bxb2 {[%emt 0:02:10]} 22. Nxb2 {[%emt 0:00:04]} Rab8 {[%emt 0:09:37]} 23. Na4 {[%emt 0:01:05]} c4 {[%emt 0:01:05]} 24. bxc4 {[%emt 0:00:14]} dxc4 {[%emt 0:00:55]} 25. Nc3 {[%emt 0:01:29]} Rb2 {[%emt 0:03:05]} 26. Rb1 {[%emt 0:00:26]} Rc2 {[%emt 0:02:04]} 27. Rbc1 {[%emt 0:00:59]} Rb2 {[%emt 0:00:01]} 28. Rb1 {[%emt 0:00:16]} Rc2 {[%emt 0:00:02]} 29. Rdc1 {[%emt 0:00:13]} Rd2 {[%emt 0:00:16]} 30. Kf1 {[%emt 0:02:26]} h6 {[%emt 0:11:47]} 31. Ke1 {[%emt 0:00:25]} Rd3 {[%emt 0:00:01]} 32. Rb7 {[%emt 0:03:10]} a6 {[%emt 0:04:56]} 33. Rb6 {[%emt 0:00:06]} Ra8 {[%emt 0:00:05]} 34. h3 {[%emt 0:04:03]} Kf8 {[%emt 0:00:14]} 35. Rc2 {[%emt 0:09:15]} Ra7 {[%emt 0:00:01]} 36. Ne2 {[%emt 0:00:36]} Rd8 {[%emt 0:03:47]} 37. Nf4 {[%emt 0:00:44]} Bf5 {[%emt 0:00:08]} 38. Rxc4 {[%emt 0:00:15]} Rad7 {[%emt 0:00:22]} 39. g4 {[%emt 0:01:36]} Rd1+ {[%emt 0:00:20]} 40. Ke2 {[%emt 0:00:00]} Bb1 {[%emt 0:00:00]} 41. Rcb4 {[%emt 0:19:17]} Bxa2 {[%emt 0:13:09]} 42. Rxa6 {[%emt 0:00:06]} R1d2+ {[%emt 0:05:40]} 43. Kf3 {[%emt 0:00:21]} g5 {[%emt 0:00:28]} 44. Nh5 {[%emt 0:06:47]} Be6 {[%emt 0:01:57]} 45. Rab6 {[%emt 0:00:41]} Bd5+ {[%emt 0:06:30]} 46. Kg3 {[%emt 0:00:21]} Rc8 {[%emt 0:02:12]} 47. Rb8 {[%emt 0:02:19]} Rxb8 {[%emt 0:00:26]} 48. Rxb8+ {[%emt 0:00:05]} Ke7 {[%emt 0:00:02]} 49. Ng7 {[%emt 0:02:00]} Kf6 {[%emt 0:01:58]} 50. Nh5+ {[%emt 0:02:36]} Ke7 {[%emt 0:00:00]} 51. Rb1 {[%emt 0:01:07]} Be4 {[%emt 0:00:21]} 52. Rb4 {[%emt 0:00:33]} Bg6 {[%emt 0:03:57]} 53. Rb7+ {[%emt 0:00:27]} Rd7 {[%emt 0:00:06]} 54. Rxd7+ {[%emt 0:00:55]} Kxd7 {[%emt 0:00:02]} 55. h4 {[%emt 0:02:01]} Ke7 {[%emt 0:00:57]} 56. hxg5 {[%emt 0:00:24]} hxg5 {[%emt 0:00:02]} 57. Kf3 {[%emt 0:00:19]} Ke6 {[%emt 0:00:37]} 58. Ng3 {[%emt 0:00:12]} Ke5 {[%emt 0:00:04]} 59. Nf1 {[%emt 0:00:28]} Bd3 {[%emt 0:01:40]} 60. Nd2 {[%emt 0:00:07]} f6 {[%emt 0:00:51]} 61. Nb3 {[%emt 0:00:09]} Bc2 {[%emt 0:00:10]} 62. Nd4 {[%emt 0:00:18]} Bd1+ {[%emt 0:00:01]} 63. Kg3 {[%emt 0:00:05]} Ke4 {[%emt 0:00:08]} 64. Nf5 {[%emt 0:00:11]} Ke5 {[%emt 0:00:20]} 65. f3 {[%emt 0:00:19]} Bc2 {[%emt 0:00:34]} 66. Nd4 {[%emt 0:00:05]} Ba4 {[%emt 0:00:08]} 67. Kf2 {[%emt 0:00:03]} Bd7 {[%emt 0:00:44]} 68. Ke2 {[%emt 0:00:06]} Bc8 {[%emt 0:00:38]} 69. Kd2 {[%emt 0:00:22]} Ba6 {[%emt 0:00:05]} 70. Nc6+ {[%emt 0:00:35]} Kd6 {[%emt 0:00:06]} 71. Nb4 {[%emt 0:00:09]} Bb5 {[%emt 0:00:55]} 72. Nd3 {[%emt 0:02:59]} Ba6 {[%emt 0:00:28]} 73. Kc3 {[%emt 0:00:31]} Bb7 {[%emt 0:00:14]} 74. e4 {[%emt 0:01:36]} Ba6 {[%emt 0:00:00]} 75. Kd4 {[%emt 0:00:40]} Bxd3 {[%emt 0:01:24]} 76. Kxd3 {[%emt 0:00:10]} Ke5 {[%emt 0:00:36]} 77. Ke3 {[%emt 0:00:05]} Ke6 {[%emt 0:00:05]} 78. f4 {[%emt 0:00:22]} gxf4+ {[%emt 0:00:06]} 79. Kxf4 {[%emt 0:00:02]} Ke7 {[%emt 0:00:33]} 80. Ke3 {[%emt 0:00:34]} Ke6 {[%emt 0:00:28]} 81. Kf2 {[%emt 0:00:08]} Ke5 {[%emt 0:00:05]} 82. Kf3 {[%emt 0:00:03]} Ke6 {[%emt 0:00:04]} 83. Kg3 {[%emt 0:00:07]} Ke5 {[%emt 0:00:02]} 84. Kf3 {[%emt 0:00:03]} Ke6 {[%emt 0:00:02]} 85. Kf4 {[%emt 0:00:05]} Ke7 {[%emt 0:00:03]} 86. e5 {[%emt 0:00:09]} Ke6 {[%emt 0:00:01]} 1/2-1/2

[Event "9th A. Margaryan Memorial 2019"]
[Site "Yerevan"]
[Date "2019.01.12"]
[Round "5"]
[White "Babujian, Levon"]
[Black "Sargsyan, Anna M."]
[Result "1/2-1/2"]
[ECO "D18"]
[WhiteElo "2488"]
[BlackElo "2339"]
[Annotator "ChessBase"]
[PlyCount "66"]
[EventDate "2019.01.08"]
[EventType "tourn"]
[EventCountry "ARM"]
[SourceTitle "playchess.com"]
[Source "ChessBase"]
[SourceQuality "1"]
[TimeControl "40/5400+30:1800+30"]

1. d4 d5 2. c4 c6 3. Nc3 Nf6 4. Nf3 dxc4 5. a4 Bf5 6. e3 e6 7. Bxc4 Bb4 8. O-O Nbd7 9. Nh4 O-O 10. f3 Bg6 11. Nxg6 hxg6 12. e4 e5 13. Be3 Qa5 14. Na2 Nb6 15. Bb3 exd4 16. Qxd4 c5 17. Qd3 Rad8 18. Qc2 Bd2 19. Bf2 Rc8 20. Rfd1 Rfd8 21. Nc3 c4 22. Rxd2 Rxd2 23. Qxd2 cxb3 24. Qd1 Rxc3 25. bxc3 b2 26. Qd8+ Kh7 27. Rf1 Nfd7 28. h3 Qa6 29. Rb1 Qxa4 30. Bxb6 Nxb6 31. Kh2 Qc2 32. Qh4+ Kg8 33. Qd8+ Kh7 1/2-1/2

[Event "9th A. Margaryan Memorial 2019"]
[Site "Yerevan"]
[Date "2019.01.12"]
[Round "5"]
[White "Gholami, Aryan"]
[Black "Sturua, Zurab"]
[Result "1/2-1/2"]
[ECO "A35"]
[WhiteElo "2488"]
[BlackElo "2533"]
[Annotator "ChessBase"]
[PlyCount "100"]
[EventDate "2019.01.08"]
[EventType "tourn"]
[EventCountry "ARM"]
[SourceTitle "playchess.com"]
[Source "ChessBase"]
[SourceQuality "1"]
[TimeControl "40/5400+30:1800+30"]

1. Nf3 {[%emt 0:00:00]} c5 {[%emt 0:00:45]} 2. c4 {[%emt 0:00:17]} Nc6 {[%emt 0:00:45]} 3. Nc3 {[%emt 0:00:17]} Nf6 {[%emt 0:00:40]} 4. d4 {[%emt 0:00:30]} cxd4 {[%emt 0:00:25]} 5. Nxd4 {[%emt 0:00:09]} g6 {[%emt 0:03:33]} 6. g3 {[%emt 0:00:48]} d6 {[%emt 0:04:13]} 7. Nxc6 {[%emt 0:03:40]} bxc6 {[%emt 0:00:09]} 8. Bg2 {[%emt 0:00:04]} Bd7 {[%emt 0:01:04]} 9. O-O {[%emt 0:00:23]} Bg7 {[%emt 0:00:18]} 10. e4 {[%emt 0:00:35]} O-O {[%emt 0:02:07]} 11. c5 {[%emt 0:02:25]} dxc5 {[%emt 0:03:51]} 12. Na4 {[%emt 0:27:17]} Qc8 {[%emt 0:04:42]} 13. Nxc5 {[%emt 0:03:13]} Bh3 {[%emt 0:00:09]} 14. Qc2 {[%emt 0:01:50]} Bxg2 {[%emt 0:00:40]} 15. Kxg2 {[%emt 0:00:06]} Nd7 {[%emt 0:00:16]} 16. Be3 {[%emt 0:01:12]} Nxc5 {[%emt 0:20:00]} 17. Bxc5 {[%emt 0:00:18]} Qe6 {[%emt 0:00:04]} 18. Rfd1 {[%emt 0:07:38]} Rab8 {[%emt 0:11:17]} 19. Bd4 {[%emt 0:00:07]} Bxd4 {[%emt 0:00:07]} 20. Rxd4 {[%emt 0:00:05]} Qe5 {[%emt 0:00:04]} 21. Rd2 {[%emt 0:05:22]} Rfd8 {[%emt 0:01:28]} 22. Rad1 {[%emt 0:00:07]} Rxd2 {[%emt 0:01:45]} 23. Rxd2 {[%emt 0:00:06]} Rb4 {[%emt 0:00:17]} 24. Qxc6 {[%emt 0:01:15]} Qxe4+ {[%emt 0:00:21]} 25. Qxe4 {[%emt 0:00:06]} Rxe4 {[%emt 0:00:05]} 26. b3 {[%emt 0:00:55]} a5 {[%emt 0:04:52]} 27. Kf3 {[%emt 0:00:17]} Re5 {[%emt 0:09:06]} 28. Re2 {[%emt 0:04:34]} Rf5+ {[%emt 0:01:08]} 29. Ke4 {[%emt 0:00:48]} Kf8 {[%emt 0:01:55]} 30. f4 {[%emt 0:03:40]} Ke8 {[%emt 0:02:38]} 31. Rd2 {[%emt 0:05:33]} e6 {[%emt 0:03:54]} 32. Rd6 {[%emt 0:00:11]} g5 {[%emt 0:02:35]} 33. fxg5 {[%emt 0:03:43]} Rxg5 {[%emt 0:00:36]} 34. Rb6 {[%emt 0:00:40]} Rf5 {[%emt 0:14:35]} 35. a4 {[%emt 0:01:42]} Kd7 {[%emt 0:00:57]} 36. g4 {[%emt 0:00:17]} Rf2 {[%emt 0:01:10]} 37. Rb5 {[%emt 0:00:26]} Rxh2 {[%emt 0:01:04]} 38. Rxa5 {[%emt 0:00:11]} Rh4 {[%emt 0:02:41]} 39. Ra7+ {[%emt 0:00:10]} Kc6 {[%emt 0:00:41]} 40. Rxf7 {[%emt 0:00:00]} Rxg4+ {[%emt 0:00:00]} 41. Ke5 {[%emt 0:00:58]} Rb4 {[%emt 0:11:27]} 42. Rf3 {[%emt 0:00:07]} Kd7 {[%emt 0:02:06]} 43. Kf6 {[%emt 0:00:11]} Kd6 {[%emt 0:02:51]} 44. Rd3+ {[%emt 0:00:25]} Kc5 {[%emt 0:00:04]} 45. Kxe6 {[%emt 0:00:15]} Rb6+ {[%emt 0:00:59]} 46. Kd7 {[%emt 0:01:31]} h5 {[%emt 0:02:04]} 47. Rc3+ {[%emt 0:05:17]} Kb4 {[%emt 0:00:48]} 48. Rh3 {[%emt 0:00:12]} Rh6 {[%emt 0:00:28]} 49. Ke7 {[%emt 0:00:13]} h4 {[%emt 0:00:34]} 50. Kf7 {[%emt 0:00:24]} Rc6 {[%emt 0:00:25]} 1/2-1/2

[Event "9th A. Margaryan Memorial 2019"]
[Site "Yerevan"]
[Date "2019.01.12"]
[Round "5"]
[White "Petriashvili, Nikoloz"]
[Black "Mikaelyan, Arman"]
[Result "1-0"]
[ECO "A49"]
[WhiteElo "2479"]
[BlackElo "2474"]
[Annotator "ChessBase"]
[PlyCount "145"]
[EventDate "2019.01.08"]
[EventType "tourn"]
[EventCountry "ARM"]
[SourceTitle "playchess.com"]
[Source "ChessBase"]
[SourceQuality "1"]
[TimeControl "40/5400+30:1800+30"]

1. d4 {[%emt 0:00:00]} Nf6 {[%emt 0:00:00]} 2. Nf3 {[%emt 0:00:00]} g6 {[%emt 0:00:00]} 3. g3 {[%emt 0:00:00]} Bg7 {[%emt 0:00:33]} 4. Bg2 {[%emt 0:00:00]} O-O {[%emt 0:00:27]} 5. O-O {[%emt 0:00:09]} d5 {[%emt 0:00:26]} 6. Bf4 {[%emt 0:00:05]} a5 {[%emt 0:05:10]} 7. Nc3 {[%emt 0:08:41]} a4 {[%emt 0:00:46]} 8. a3 {[%emt 0:00:35]} Bf5 {[%emt 0:02:33]} 9. Ne5 {[%emt 0:04:28]} c6 {[%emt 0:00:20]} 10. Re1 {[%emt 0:04:28]} Qb6 {[%emt 0:01:50]} 11. Rb1 {[%emt 0:03:20]} Rd8 {[%emt 0:00:37]} 12. Qd2 {[%emt 0:02:26]} Nbd7 {[%emt 0:08:23]} 13. h3 {[%emt 0:18:00]} Nh5 {[%emt 0:02:56]} 14. Nxd7 {[%emt 0:12:17]} Rxd7 {[%emt 0:00:25]} 15. e3 {[%emt 0:00:55]} Nxf4 {[%emt 0:10:37]} 16. gxf4 {[%emt 0:00:01]} h5 {[%emt 0:00:17]} 17. Na2 {[%emt 0:04:35]} c5 {[%emt 0:01:14]} 18. dxc5 {[%emt 0:00:06]} Qxc5 {[%emt 0:00:56]} 19. Nb4 {[%emt 0:00:05]} Rad8 {[%emt 0:01:14]} 20. Nd3 {[%emt 0:04:20]} Qc8 {[%emt 0:01:06]} 21. Rbc1 {[%emt 0:02:19]} Rc7 {[%emt 0:02:01]} 22. Kh2 {[%emt 0:00:06]} Be4 {[%emt 0:00:31]} 23. c3 {[%emt 0:02:49]} Qf5 {[%emt 0:04:24]} 24. Rcd1 {[%emt 0:00:04]} Bxg2 {[%emt 0:00:32]} 25. Kxg2 {[%emt 0:00:01]} Qe4+ {[%emt 0:05:16]} 26. f3 {[%emt 0:00:58]} Qc4 {[%emt 0:00:31]} 27. Nb4 {[%emt 0:01:11]} e6 {[%emt 0:00:19]} 28. Qe2 {[%emt 0:00:57]} Qc5 {[%emt 0:00:21]} 29. Nc2 {[%emt 0:02:39]} Qe7 {[%emt 0:03:48]} 30. Rd2 {[%emt 0:01:18]} Kh8 {[%emt 0:03:23]} 31. Kh2 {[%emt 0:00:37]} Rc4 {[%emt 0:01:10]} 32. Rg1 {[%emt 0:01:12]} Qc7 {[%emt 0:04:03]} 33. Kh1 {[%emt 0:00:58]} Re8 {[%emt 0:00:51]} 34. Nb4 {[%emt 0:01:43]} Bf6 {[%emt 0:01:02]} 35. Nd3 {[%emt 0:03:44]} Rg8 {[%emt 0:00:57]} 36. Qh2 {[%emt 0:00:40]} Qb6 {[%emt 0:01:27]} 37. Qf2 {[%emt 0:00:32]} Kh7 {[%emt 0:02:44]} 38. Ne5 {[%emt 0:02:10]} Rc7 {[%emt 0:01:58]} 39. Rd4 {[%emt 0:00:40]} Qa6 {[%emt 0:03:57]} 40. Rd2 {[%emt 0:00:00]} Qd6 {[%emt 0:00:00]} 41. Nd3 {[%emt 0:02:27]} Rcc8 {[%emt 0:01:27]} 42. Rdd1 {[%emt 0:01:18]} Rg7 {[%emt 0:00:55]} 43. Qe2 {[%emt 0:02:51]} Rcg8 {[%emt 0:00:36]} 44. Rg2 {[%emt 0:00:41]} Bd8 {[%emt 0:00:24]} 45. c4 {[%emt 0:04:55]} Bf6 {[%emt 0:07:34]} 46. cxd5 {[%emt 0:01:16]} Qxd5 {[%emt 0:02:33]} 47. Ne5 {[%emt 0:01:33]} Qa5 {[%emt 0:01:23]} 48. Qd2 {[%emt 0:03:16]} Ra8 {[%emt 0:03:42]} 49. Qxa5 {[%emt 0:02:37]} Rxa5 {[%emt 0:00:08]} 50. Nc4 {[%emt 0:00:05]} Rc5 {[%emt 0:03:58]} 51. Nd6 {[%emt 0:00:30]} Be7 {[%emt 0:02:14]} 52. Nxb7 {[%emt 0:01:02]} Rb5 {[%emt 0:03:21]} 53. Nd6 {[%emt 0:03:30]} Rb3 {[%emt 0:00:22]} 54. Re2 {[%emt 0:07:42]} f5 {[%emt 0:06:25]} 55. Ne8 {[%emt 0:02:59]} Rg8 {[%emt 0:01:24]} 56. Nc7 {[%emt 0:00:16]} Rb6 {[%emt 0:06:06]} 57. Rd7 {[%emt 0:00:37]} Rg7 {[%emt 0:00:15]} 58. Ne8 {[%emt 0:01:21]} Rf7 {[%emt 0:00:07]} 59. Rc2 {[%emt 0:00:24]} Rb8 {[%emt 0:01:38]} 60. Nd6 {[%emt 0:02:41]} Rg7 {[%emt 0:00:00]} 61. Rcc7 {[%emt 0:02:24]} Bf6 {[%emt 0:00:50]} 62. Rxg7+ {[%emt 0:05:36]} Bxg7 {[%emt 0:00:05]} 63. Ra7 {[%emt 0:00:50]} g5 {[%emt 0:03:22]} 64. fxg5 {[%emt 0:02:36]} Kg6 {[%emt 0:00:07]} 65. f4 {[%emt 0:00:24]} Rxb2 {[%emt 0:00:38]} 66. Re7 {[%emt 0:00:14]} Rb1+ {[%emt 0:04:35]} 67. Kg2 {[%emt 0:00:09]} Rb2+ {[%emt 0:00:03]} 68. Kf3 {[%emt 0:00:27]} Rb6 {[%emt 0:01:50]} 69. Rxe6+ {[%emt 0:00:12]} Kh7 {[%emt 0:00:01]} 70. g6+ {[%emt 0:00:15]} Kg8 {[%emt 0:00:02]} 71. Re8+ {[%emt 0:00:07]} Bf8 {[%emt 0:00:03]} 72. Nxf5 {[%emt 0:00:12]} Rxg6 {[%emt 0:00:04]} 73. Ne7+ {[%emt 0:00:06]} 1-0

[Event "9th A. Margaryan Memorial 2019"]
[Site "Yerevan"]
[Date "2019.01.12"]
[Round "5"]
[White "Sargsyan, Tigran R."]
[Black "Barseghyan, Armen Ar."]
[Result "1-0"]
[ECO "A16"]
[WhiteElo "2332"]
[BlackElo "2380"]
[Annotator "NA"]
[PlyCount "81"]
[EventDate "2019.01.08"]
[EventType "tourn"]
[EventCountry "ARM"]
[SourceTitle "playchess.com"]
[Source "ChessBase"]
[SourceQuality "1"]
[TimeControl "40/5400+30:1800+30"]

1. c4 {[%emt 0:00:00]} Nf6 {[%emt 0:00:10]} 2. Nc3 {[%emt 0:00:16]} c5 {[%emt 0:00:15]} 3. Nf3 {[%emt 0:00:44]} g6 {[%emt 0:00:08]} 4. d4 {[%emt 0:00:12]} cxd4 {[%emt 0:00:17]} 5. Nxd4 {[%emt 0:00:06]} Nc6 {[%emt 0:00:09]} 6. g3 {[%emt 0:00:22]} Bg7 {[%emt 0:00:15]} 7. Bg2 {[%emt 0:00:05]} O-O {[%emt 0:00:05]} 8. O-O {[%emt 0:00:04]} Qa5 {[%emt 0:00:50]} 9. e3 {[%emt 0:00:30]} Ne5 {[%emt 0:01:08]} 10. Qe2 {[%emt 0:00:07]} d6 {[%emt 0:00:26]} 11. Bd2 {[%emt 0:00:05]} Bg4 {[%emt 0:00:41]} 12. f3 {[%emt 0:00:14]} Bd7 {[%emt 0:00:10]} 13. Nd5 {[%emt 0:00:33]} Qd8 {[%emt 0:00:41]} 14. Nxf6+ {[%emt 0:00:07]} exf6 {[%emt 0:11:22]} 15. b3 {[%emt 0:23:38]} Re8 {[%emt 0:16:54]} 16. f4 {[%emt 0:21:09]} Bg4 {[%emt 0:07:48]} 17. Qe1 {[%emt 0:01:51]} Nd3 {[%emt 0:17:00]} 18. Qb1 {[%emt 0:00:41]} Nc5 {[%emt 0:00:26]} 19. f5 {[%emt 0:02:42]} Qe7 {[%emt 0:03:44]} 20. h3 {[%emt 0:08:21]} Bxf5 {[%emt 0:03:35]} 21. Nxf5 {[%emt 0:01:29]} gxf5 {[%emt 0:00:06]} 22. Rxf5 Bh6 23. Kh2 {[%emt 0:16:53]} Ne4 {[%emt 0:12:50]} 24. Bb4 {[%emt 0:07:43]} Qe6 {[%emt 0:07:03]} 25. Qf1 {[%emt 0:02:15]} a5 {[%emt 0:01:02]} 26. Bxa5 {[%emt 0:03:12]} Kh8 {[%emt 0:08:39]} 27. Qf3 {[%emt 0:03:19]} Ng5 {[%emt 0:04:25]} 28. Qg4 {[%emt 0:01:33]} Qxe3 {[%emt 0:01:34]} 29. Re1 {[%emt 0:00:44]} Qd3 {[%emt 0:00:14]} 30. Rxe8+ {[%emt 0:00:59]} Rxe8 {[%emt 0:00:01]} 31. Rxf6 {[%emt 0:00:22]} Re2 {[%emt 0:01:01]} 32. Rf1 {[%emt 0:01:57]} Qc2 {[%emt 0:01:56]} 33. Qc8+ {[%emt 0:00:29]} Kg7 {[%emt 0:00:06]} 34. Qxb7 {[%emt 0:00:12]} Qg6 {[%emt 0:01:28]} 35. Bc3+ {[%emt 0:00:15]} Kg8 {[%emt 0:00:01]} 36. Qc8+ {[%emt 0:01:05]} Bf8 {[%emt 0:00:04]} 37. Qg4 {[%emt 0:00:49]} Rc2 {[%emt 0:01:15]} 38. Rf6 {[%emt 0:00:39]} Qe4 {[%emt 0:00:40]} 39. Qxg5+ {[%emt 0:00:28]} Bg7 {[%emt 0:00:03]} 40. Qxg7+ {[%emt 0:00:00]} Kxg7 {[%emt 0:00:00]} 41. Rf4+ {[%emt 0:00:47]} 1-0